Workbook

Sheet MSU
B1: Jari Kolehmainen | E1: 27.1.1980
B2: SUPERPESIS | E2: Runkosarja | I2: Kärkilyönnit (KL), pesänvälit | P2: Ylempi loppusarja | W2: Alempi loppusarja | AD2: Arvo-ottelut | AH2: Mitalit
B3: Vuosi | C3: Sija | D3: Seura | E3: OTT | F3: KUN | G3: LÖI | H3: TOI | I3: KL | J3: 0 > 1 | K3: 1 > 2 | L3: 2 > 3 | M3: 3 > k | N3: KL-% | P3: OTT | Q3: KUN | R3: LÖI | S3: TOI | T3: KL | U3: KL-% | W3: OTT | X3: KUN | Y3: LÖI | Z3: TOI | AA3: KL | AB3: KL-% | AD3: IL | AE3: LL | AF3: hSM | AG3: K | AH3: H | AI3: P
B4: 1999 | C4: 2. | D4: IPV | F4: ykköspesis | W4: 4 | X4: 0 | Y4: 0 | Z4: 0 | AA4: 2 | AB4: 18.2 %
B5: 2000 | C5: 10. | D5: IPV | E5: 4 | F5: 0 | G5: 0 | H5: 0 | I5: 1 | J5: 1 | K5: 0 | L5: 0 | M5: 0 | N5: 12.5 %
B6: 2001
B7: 2002 | C7: 7. | D7: IPV 2 | F7: suomensarja
B8: 2003 | C8: 10. | D8: IPV | E8: 0 | F8: 0 | G8: 0 | H8: 0 | I8: 0 | J8: 0 | K8: 0 | L8: 0 | M8: 0 | N8: ---- | W8: 1 | X8: 0 | Y8: 0 | Z8: 0 | AA8: 0 | AB8: 0.0 %
B9: 2004
B10: 2005
B11: 2006 | C11: 8. | D11: IPV 2 | F11: suomensarja
B12: 2007 | C12: 8. | D12: IPV 2 | F12: suomensarja
B13: ****
B14: 2019 | C14: 7. | D14: IPV 2 | F14: suomensarja
B15: Yhteensä | E15: 4 | F15: 0 | G15: 0 | H15: 0 | I15: 1 | J15: 1 | K15: 0 | L15: 0 | M15: 0 | N15: 12.5 % | P15: 0 | Q15: 0 | R15: 0 | S15: 0 | T15: 0 | U15: 0.0 % | W15: =PRODUCT(E21) -> 5 | X15: =PRODUCT(F21) -> 0 | Y15: 0 | Z15: 0 | AA15: 2 | AB15: =PRODUCT(N21) -> 16.7 % | AD15: 0 | AE15: 0 | AF15: 0 | AG15: 0 | AH15: 0 | AI15: 0
B16: Pesispörssi | D16: 1.7
B18: URA SUPERISSA | E18: OTT | F18: KUN | G18: LÖI | H18: TOI | I18: KL | K18: ka/L | L18: ka/T | M18: ka/KL | N18: KL-% | P18: ENSIMMÄISET RUNKOSARJASSA
B19: Runkosarja | E19: 4 | F19: 0 | G19: 0 | H19: 0 | I19: 1 | K19: 0.00 | L19: 0.00 | M19: 0.25 | N19: 12.5 % | P19: Ottelu | R19: 13.05. 2000 AA - IPV 1-0 (2-2, 11-7) | Z19: 1. ottelu | AB19: 20 v 3 kk 16 pv
B20: Ylempi loppusarja | P20: Lyöty
B21: Alempi loppusarja | E21: 5 | F21: 0 | G21: 0 | H21: 0 | I21: 2 | K21: 0.00 | L21: 0.00 | M21: 0.40 | N21: 16.7 % | P21: Tuotu
B22: KAIKKI | E22: 9 | F22: 0 | G22: 0 | H22: 0 | I22: 3 | K22: 0.00 | L22: 0.00 | M22: 0.33 | N22: 15.0 % | P22: Kunnari
B24: Seurat | D24: IPV = Imatran Pallo-Veikot (1955)

Sheet MYP, MSS
B1: Jari Kolehmainen | E1: 27.1.1980
B2: YKKÖSPESIS | E2: Runkosarja | L2: Runkosarja TOP-10 | Q2: Jatkosarjat | X2: SUOMENSARJA | AA2: Runkosarja | AH2: Runkosarja TOP-10 | AM2: Jatkosarjat
B3: Vuosi | C3: Sija | D3: Seura | E3: OTT | F3: KUN | G3: LÖI | H3: TOI | I3: KL | J3: KL-% | L3: LÖI | M3: TOI | N3: L+T | O3: KL | Q3: OTT | R3: KUN | S3: LÖI | T3: TOI | U3: KL | V3: KL-% | X3: Vuosi | Y3: Sija | Z3: Seura | AA3: OTT | AB3: KUN | AC3: LÖI | AD3: TOI | AE3: KL | AF3: KL-% | AH3: LÖI | AI3: TOI | AJ3: L+T | AK3: KL | AM3: OTT | AN3: KUN | AO3: LÖI | AP3: TOI | AQ3: KL | AR3: KL-%
B4: 1999 | C4: 2. | D4: IPV | Q4: 9 | R4: 0 | S4: 6 | T4: 0 | U4: 7
X6: 2002 | Y6: 7. | Z6: IPV 2 | AA6: 18 | AB6: 1 | AC6: 20 | AD6: 2 | AE6: 35 | AF6: 36.8 % | AG6: 95
X7: 2006 | Y7: 8. | Z7: IPV 2 | AA7: 16 | AB7: 1 | AC7: 22 | AD7: 3 | AE7: 48 | AF7: 44.0 % | AG7: 109
X8: 2007 | Y8: 8. | Z8: IPV 2 | AA8: 15 | AB8: 3 | AC8: 22 | AD8: 6 | AE8: 48 | AF8: 38.1 % | AG8: 126
X10: 2019 | Y10: 7. | Z10: IPV 2 | AA10: 3 | AB10: 0 | AC10: 1 | AD10: 0 | AE10: 2 | AF10: 14.3 % | AG10: 14
B11: YHTEENSÄ | E11: =SUM(E4:E10) -> 0 | F11: =SUM(F4:F10) -> 0 | G11: =SUM(G4:G10) -> 0 | H11: =SUM(H4:H10) -> 0 | I11: =SUM(I4:I10) -> 0 | J11: 0.0 % | K11: =SUM(K4:K10) -> 0 | Q11: =SUM(Q4:Q10) -> 9 | R11: =SUM(R4:R10) -> 0 | S11: =SUM(S4:S10) -> 6 | T11: =SUM(T4:T10) -> 0 | U11: =SUM(U4:U10) -> 7 | V11: 0.0 % | W11: =SUM(W4:W10) -> 0 | X11: YHTEENSÄ | AA11: =SUM(AA4:AA10) -> 52 | AB11: =SUM(AB4:AB10) -> 5 | AC11: =SUM(AC4:AC10) -> 65 | AD11: =SUM(AD4:AD10) -> 11 | AE11: =SUM(AE4:AE10) -> 133 | AF11: =PRODUCT(AE11/AG11) -> 38.7 % | AG11: =SUM(AG4:AG10) -> 344 | AM11: =SUM(AM4:AM10) -> 0 | AN11: =SUM(AN4:AN10) -> 0 | AO11: =SUM(AO4:AO10) -> 0 | AP11: =SUM(AP4:AP10) -> 0 | AQ11: =SUM(AQ4:AQ10) -> 0 | AR11: 0.0 % | AS11: =SUM(AS4:AS10) -> 0
B13: KAIKKI OTTELUT | E13: OTT | F13: KUN | G13: LÖI | H13: TOI | I13: KL | J13: KL-% | L13: ka/L | M13: ka/T | N13: ka/l+t | O13: ka/kl | R13: Seurat | T13: IPV = Imatran Pallo-Veikot (1955), kasvattajaseura
B14: SUPERPESIS | E14: 0 | F14: 0 | G14: 0 | H14: 0 | I14: 0 | J14: 0.0 % | K14: =PRODUCT(I14/J14) ->  | L14: 0.00 | M14: 0.00 | N14: 0.00 | O14: 0.00
B15: YKKÖSPESIS | E15: =PRODUCT(E11+Q11) -> 9 | F15: =PRODUCT(F11+R11) -> 0 | G15: =PRODUCT(G11+S11) -> 6 | H15: =PRODUCT(H11+T11) -> 0 | I15: =PRODUCT(I11+U11) -> 7 | K15: =PRODUCT(K11+W11) -> 0 | L15: =PRODUCT((F15+G15)/E15) -> 0.67 | M15: =PRODUCT(H15/E15) -> 0.00 | N15: =PRODUCT((F15+G15+H15)/E15) -> 0.67 | O15: =PRODUCT(I15/E15) -> 0.78
B16: SUOMENSARJA | E16: =PRODUCT(AA11+AM11) -> 52 | F16: =PRODUCT(AB11+AN11) -> 5 | G16: =PRODUCT(AC11+AO11) -> 65 | H16: =PRODUCT(AD11+AP11) -> 11 | I16: =PRODUCT(AE11+AQ11) -> 133 | J16: =PRODUCT(I16/K16) -> 38.7 % | K16: =PRODUCT(AG11+AS11) -> 344 | L16: =PRODUCT((F16+G16)/E16) -> 1.35 | M16: =PRODUCT(H16/E16) -> 0.21 | N16: =PRODUCT((F16+G16+H16)/E16) -> 1.56 | O16: =PRODUCT(I16/E16) -> 2.56
B17: YHTEENSÄ | E17: =SUM(E14:E16) -> 61 | F17: =SUM(F14:F16) -> 5 | G17: 71 | H17: 11 | I17: 140 | K17: =SUM(K14:K16) ->  | L17: =PRODUCT((F17+G17)/E17) -> 1.25 | M17: =PRODUCT(H17/E17) -> 0.18 | N17: =PRODUCT((F17+G17+H17)/E17) -> 1.43 | O17: =PRODUCT(I17/E17) -> 2.30
